lending/lending_fUSD_20240112
["ID","MTS","AMOUNT","RATE_DAILY","PERIOD"]
[311341948,1705065076218,-500.0,0.00023412,2]
[311341949,1705065076227,-526.02,0.00023412,2]
[311341950,1705065076238,-508.71381977,0.00023412,2]
[311341951,1705065076247,-500.0,0.00023412,2]
[311341952,1705065076257,-500.0,0.00023412,2]
[311341953,1705065076266,-500.0,0.00023412,2]
[311341954,1705065076275,-500.0,0.00023412,2]
[311341955,1705065076285,-500.0,0.00023412,2]
[311341956,1705065076295,-500.0,0.00023412,2]
[311341957,1705065076305,-500.0,0.00023412,2]
[311341958,1705065076316,-514.03,0.00023412,2]
[311341959,1705065076325,-500.0,0.00023412,2]
[311341960,1705065076334,-500.0,0.00023412,2]
[311341961,1705065076344,-500.0,0.00023412,2]
[311341962,1705065076354,-500.0,0.00023412,2]
[311341963,1705065076363,-500.0,0.00023412,2]
[311341964,1705065076372,-500.0,0.00023412,2]
[311341965,1705065076381,-1199.16,0.00023412,2]
[311341966,1705065076390,-500.0,0.00023412,2]
[311341967,1705065076401,-500.0,0.00023412,2]
[311341968,1705065076410,-500.0,0.00023412,2]
[311341969,1705065076420,-500.0,0.00023412,2]
[311341970,1705065076429,-500.0,0.00023412,2]
[311341971,1705065076440,-500.0,0.00023412,2]
[311341972,1705065076450,-500.0,0.00023412,2]
[311341973,1705065076460,-809.87,0.00023412,2]
[311341974,1705065076471,-616.64866581,0.00023412,2]
[311341975,1705065076480,-519.93135599,0.00023412,2]
[311341976,1705065076490,-500.0,0.00023412,2]
[311341977,1705065076499,-826.13,0.00023412,2]
[311341978,1705065076508,-500.0,0.00023412,2]
[311341979,1705065076517,-500.0,0.00023412,2]
[311341980,1705065076526,-629.29,0.00023412,2]
[311341981,1705065076535,-2053.17,0.00023412,2]
[311341982,1705065076544,-500.0,0.00023412,2]
[311341983,1705065076553,-500.0,0.00023412,2]
[311341984,1705065076562,-500.0,0.00023412,2]
[311341985,1705065076571,-500.0,0.00023412,2]
[311341986,1705065076580,-500.0,0.00023412,2]
[311341987,1705065076589,-500.0,0.00023412,2]
[311341988,1705065076599,-500.0,0.00023412,2]
[311341989,1705065076608,-500.0,0.00023412,2]
[311341990,1705065076617,-215.24159211,0.00023412,2]
[311341991,1705065076627,-713.26,0.00023412,2]
[311341992,1705065076636,-896.29,0.00023412,2]
[311341993,1705065076645,-500.0,0.00023412,2]
[311341994,1705065076655,-500.0,0.00023412,2]
[311341995,1705065076664,-500.0,0.00023412,2]
[311341996,1705065076673,-500.0,0.00023412,2]
[311341997,1705065076683,-1112.52,0.00023412,2]
[311341998,1705065076693,-500.0,0.00023412,2]
[311341999,1705065076704,-1157.27,0.00023412,2]
[311342000,1705065076720,-500.0,0.00023412,2]
[311342001,1705065076742,-500.0,0.00023412,2]
[311342002,1705065076759,-500.0,0.00023412,2]
[311342003,1705065076779,-500.0,0.00023412,2]
[311342004,1705065076796,-574.98,0.00023412,2]
[311342005,1705065076819,-597.76,0.00023412,2]
[311342006,1705065076838,-500.0,0.00023412,2]
[311342007,1705065076855,-500.0,0.00023412,2]
[311342008,1705065076875,-500.0,0.00023412,2]
[311342009,1705065076892,-500.0,0.00023412,2]
[311342010,1705065076913,-500.0,0.00023412,2]
[311342011,1705065076932,-1688.31,0.00023412,2]
[311342012,1705065076947,-500.0,0.00023412,2]
[311342013,1705065076966,-500.0,0.00023412,2]
[311342014,1705065076981,-500.0,0.00023412,2]
[311342015,1705065076996,-500.0,0.00023412,2]
[311342016,1705065077012,-500.0,0.00023412,2]
[311342017,1705065077027,-500.0,0.00023412,2]
[311342018,1705065077044,-500.0,0.00023412,2]
[311342019,1705065077059,-500.0,0.00023412,2]
[311342020,1705065077073,-500.0,0.00023412,2]
[311342021,1705065077090,-370.03701607,0.00023412,2]
[311342022,1705065077104,-974.33,0.00023412,2]
[311342023,1705065077120,-500.0,0.00023412,2]
[311342024,1705065077134,-500.0,0.00023412,2]
[311342025,1705065077150,-500.0,0.00023412,2]
[311342026,1705065077165,-500.0,0.00023412,2]
[311342027,1705065077180,-500.0,0.00023412,2]
[311342028,1705065077198,-500.0,0.00023412,2]
[311342029,1705065077214,-644.03,0.00023412,2]
[311342030,1705065077229,-500.0,0.00023412,2]
[311342031,1705065077243,-500.0,0.00023412,2]
[311342032,1705065077259,-500.0,0.00023412,2]
[311342033,1705065077275,-200.08534489,0.00023412,2]
[311342034,1705065077290,-500.0,0.00023412,2]
[311342035,1705065077305,-500.0,0.00023412,2]
[311342036,1705065077320,-791.75,0.00023412,2]
[311342037,1705065077335,-500.0,0.00023412,2]
[311342038,1705065077352,-500.0,0.00023412,2]
[311342039,1705065077368,-500.0,0.00023412,2]
[311342040,1705065077384,-2017.32,0.00023412,2]
[311342041,1705065077399,-500.0,0.00023412,2]
[311342042,1705065077414,-500.0,0.00023412,2]
[311342043,1705065077430,-500.0,0.00023412,2]
[311342044,1705065077446,-535.6,0.00023412,2]
[311342045,1705065077460,-500.0,0.00023412,2]
[311342046,1705065077476,-705.71,0.00023412,2]
[311342047,1705065077491,-500.0,0.00023412,2]
[311342048,1705065077506,-655.0,0.00023412,2]
[311342049,1705065077522,-500.0,0.00023412,2]
[311342050,1705065077537,-500.0,0.00023412,2]
[311342051,1705065077552,-500.0,0.00023412,2]
[311342052,1705065077567,-500.0,0.00023412,2]
[311342053,1705065077583,-500.0,0.00023412,2]
[311342054,1705065077598,-1374.63,0.00023412,2]
[311342055,1705065077612,-500.0,0.00023412,2]
[311342056,1705065077627,-500.0,0.00023412,2]
[311342057,1705065077642,-1550.52,0.00023412,2]
[311342058,1705065077656,-500.0,0.00023412,2]
[311342059,1705065077671,-500.0,0.00023412,2]
[311342060,1705065077686,-500.0,0.00023412,2]
[311342061,1705065077701,-500.0,0.00023412,2]
[311342062,1705065077716,-500.0,0.00023412,2]
[311342063,1705065077731,-1473.58,0.00023412,2]
[311342064,1705065077746,-500.0,0.00023412,2]
[311342065,1705065077761,-500.0,0.00023412,2]
[311342066,1705065077778,-805.25,0.00023412,2]
[311342067,1705065077788,-500.0,0.00023412,2]
[311342068,1705065077798,-252.80983559,0.00023412,2]
[311342069,1705065077807,-500.0,0.00023412,2]
[311342070,1705065077819,-500.0,0.00023412,2]
[311342071,1705065077828,-500.0,0.00023412,2]
[311342072,1705065077838,-1112.34,0.00023412,2]
[311342073,1705065077847,-943.87,0.00023412,2]
[311342074,1705065077857,-500.0,0.00023412,2]
[311342075,1705065077867,-250.0,0.00023412,2]
[311342076,1705065077877,-500.0,0.00023412,2]
[311342077,1705065077886,-500.0,0.00023412,2]
[311342078,1705065077895,-500.0,0.00023412,2]
[311342079,1705065077904,-500.0,0.00023412,2]
[311342080,1705065077914,-500.0,0.00023412,2]
[311342081,1705065077923,-500.0,0.00023412,2]
[311342082,1705065077932,-500.0,0.00023412,2]
[311342083,1705065077942,-565.25,0.00023412,2]
[311342084,1705065077952,-640.68,0.00023412,2]
[311342085,1705065077961,-500.0,0.00023412,2]
[311342086,1705065077970,-500.0,0.00023412,2]
[311342087,1705065077980,-500.0,0.00023412,2]
[311342088,1705065077989,-500.0,0.00023412,2]
[311342089,1705065077998,-500.0,0.00023412,2]
[311342090,1705065078008,-500.0,0.00023412,2]
[311342091,1705065078018,-3783.76,0.00023412,2]
[311342092,1705065078027,-500.0,0.00023412,2]
[311342093,1705065078036,-500.0,0.00023412,2]
[311342094,1705065078045,-500.0,0.00023412,2]
[311342095,1705065078054,-500.0,0.00023412,2]
[311342096,1705065078064,-500.0,0.00023412,2]
[311342097,1705065078074,-500.0,0.00023412,2]
[311342098,1705065078083,-500.0,0.00023413,2]
[311342099,1705065078092,-269.71,0.00023413,2]
[311342100,1705065078102,-500.0,0.00023413,2]
[311342101,1705065078111,-500.0,0.00023413,2]
[311342102,1705065078121,-301.73,0.00023413,2]
[311342103,1705065078518,-500.0,0.00023413,2]
[311342104,1705065078538,-500.0,0.00023413,2]
[311342105,1705065078556,-196.12,0.00023413,2]
[311342106,1705065078579,-500.0,0.00023413,2]
[311342107,1705065078596,-350.19,0.00023413,2]
[311342108,1705065078606,-500.0,0.00023413,2]
[311342109,1705065078615,-500.0,0.00023413,2]
[311342110,1705065078624,-500.0,0.00023413,2]
[311342111,1705065078633,-500.0,0.00023413,2]
[311342112,1705065078643,-500.0,0.00023413,2]
[311342113,1705065078653,-500.0,0.00023413,2]
[311342114,1705065078664,-648.33,0.00023413,2]
[311342115,1705065078673,-500.0,0.00023413,2]
[311342116,1705065078683,-500.0,0.00023413,2]
[311342117,1705065078692,-500.0,0.00023413,2]
[311342118,1705065078704,-500.0,0.00023413,2]
[311342119,1705065078713,-500.0,0.00023413,2]
[311342120,1705065078723,-500.0,0.00023413,2]
[311342121,1705065078732,-500.0,0.00023413,2]
[311342122,1705065078741,-500.0,0.00023413,2]
[311342123,1705065078751,-500.0,0.00023413,2]
[311342124,1705065078760,-527.36,0.00023413,2]
[311342125,1705065078769,-306.01,0.00023413,2]
[311342126,1705065078778,-500.0,0.00023413,2]
[311342127,1705065078787,-366.24,0.00023413,2]
[311342128,1705065078796,-527.56,0.00023413,2]
[311342129,1705065078805,-500.0,0.00023413,2]
[311342130,1705065078816,-500.0,0.00023413,2]
[311342131,1705065078827,-513.32,0.00023413,2]
[311342132,1705065078837,-151.82,0.00023413,2]
[311342133,1705065078847,-500.0,0.00023413,2]
[311342134,1705065078857,-500.0,0.00023413,2]
[311342135,1705065078866,-587.04,0.00023413,2]
[311342136,1705065078877,-290.28,0.00023413,2]
[311342137,1705065078886,-518.65601879,0.00023413,2]
[311342138,1705065078895,-500.0,0.00023413,2]
[311342139,1705065078905,-500.0,0.00023413,2]
[311342140,1705065078916,-500.0,0.00023413,2]
[311342141,1705065078925,-500.0,0.00023413,2]
[311342142,1705065078934,-500.0,0.00023413,2]
[311342143,1705065078943,-500.0,0.00023413,2]
[311342144,1705065078954,-455.39646327,0.00023413,2]
[311342145,1705065078963,-500.0,0.00023413,2]
[311342146,1705065078972,-245.38,0.00023413,2]
[311342147,1705065078981,-500.0,0.00023413,2]
[311342148,1705065078991,-500.0,0.00023413,2]
[311342149,1705065079001,-500.0,0.00023413,2]
[311342150,1705065079009,-581.61,0.00023413,2]
[311342151,1705065079019,-500.0,0.00023413,2]
[311342152,1705065079030,-500.0,0.00023413,2]
[311342153,1705065079039,-500.0,0.00023413,2]
[311342154,1705065079049,-500.0,0.00023413,2]
[311342155,1705065079058,-190.72,0.00023413,2]
[311342156,1705065079068,-500.0,0.00023413,2]
[311342157,1705065079079,-578.38,0.00023413,2]
[311342158,1705065079090,-500.0,0.00023413,2]
[311342159,1705065079099,-358.96,0.00023413,2]
[311342160,1705065079109,-500.0,0.00023413,2]
[311342161,1705065079118,-500.0,0.00023413,2]
[311342162,1705065079127,-565.65,0.00023413,2]
[311342163,1705065079137,-500.0,0.00023413,2]
[311342164,1705065079146,-323.22,0.00023413,2]
[311342165,1705065079155,-511.53,0.00023413,2]
[311342166,1705065079165,-156.98,0.00023413,2]
[311342167,1705065079174,-500.0,0.00023413,2]
[311342168,1705065079183,-248.57488183,0.00023413,2]
[311342169,1705065079192,-500.0,0.00023413,2]
[311342170,1705065079204,-190.46,0.00023413,2]
[311342171,1705065079213,-500.0,0.00023413,2]
[311342172,1705065079222,-500.0,0.00023413,2]
[311342173,1705065079232,-500.0,0.00023413,2]
[311342174,1705065079242,-500.0,0.00023413,2]
[311342175,1705065079251,-227.4,0.00023413,2]
[311342176,1705065079261,-538.26664406,0.00023413,2]
[311342177,1705065079270,-500.0,0.00023413,2]
[311342178,1705065079279,-500.0,0.00023413,2]
[311342179,1705065079289,-500.0,0.00023413,2]
[311342180,1705065079298,-500.0,0.00023413,2]
[311342181,1705065079307,-358.7,0.00023413,2]
[311342182,1705065079316,-500.0,0.00023413,2]
[311342183,1705065079326,-195.24,0.00023413,2]
[311342184,1705065079335,-335.44,0.00023413,2]
[311342185,1705065079344,-592.66,0.00023413,2]
[311342186,1705065079353,-500.0,0.00023413,2]
[311342187,1705065079363,-500.0,0.00023413,2]
[311342188,1705065079372,-500.0,0.00023413,2]
[311342189,1705065079381,-452.8981735,0.00023413,2]
[311342190,1705065079391,-500.0,0.00023413,2]
[311342191,1705065079401,-500.0,0.00023413,2]
[311342192,1705065079410,-500.0,0.00023413,2]
[311342193,1705065079419,-500.0,0.00023413,2]
[311342194,1705065079429,-387.41,0.00023413,2]
[311342195,1705065079438,-403.49,0.00023413,2]
[311342196,1705065079447,-500.0,0.00023413,2]
[311342197,1705065079458,-500.0,0.00023413,2]
[311342198,1705065079467,-377.3,0.00023413,2]
[311342199,1705065079476,-500.0,0.00023413,2]
[311342200,1705065079486,-500.0,0.00023413,2]
[311342201,1705065079495,-500.0,0.00023413,2]
[311342202,1705065079504,-527.84,0.00023413,2]
[311342203,1705065079513,-500.0,0.00023413,2]
[311342204,1705065079522,-500.0,0.00023413,2]
[311342205,1705065079531,-500.0,0.00023413,2]
[311342206,1705065079541,-500.0,0.00023413,2]
[311342207,1705065079550,-500.0,0.00023413,2]
[311342208,1705065079560,-500.0,0.00023413,2]
[311342209,1705065079569,-270.5,0.00023413,2]
[311342210,1705065079578,-500.0,0.00023413,2]
[311342211,1705065079588,-500.0,0.00023413,2]
[311342212,1705065079597,-464.46,0.00023413,2]
[311342213,1705065079606,-500.0,0.00023413,2]
[311342214,1705065079615,-500.0,0.00023413,2]
[311342215,1705065079624,-500.0,0.00023413,2]
[311342216,1705065079634,-500.0,0.00023413,2]
[311342217,1705065079643,-500.0,0.00023413,2]
[311342218,1705065079652,-500.0,0.00023413,2]
[311342219,1705065079662,-500.0,0.00023413,2]
[311342220,1705065079671,-500.0,0.00023413,2]
[311342221,1705065079680,-557.22,0.00023413,2]
[311342222,1705065079689,-500.0,0.00023413,2]
[311342223,1705065079699,-500.0,0.00023413,2]
[311342224,1705065079709,-500.0,0.00023413,2]
[311342225,1705065079718,-500.0,0.00023413,2]
[311342226,1705065079727,-500.0,0.00023413,2]
[311342227,1705065079736,-575.27,0.00023413,2]
[311342228,1705065079745,-500.0,0.00023413,2]
[311342229,1705065079754,-500.0,0.00023413,2]
[311342230,1705065079764,-500.0,0.00023413,2]
[311342231,1705065079774,-474.85849868,0.00023413,2]
[311342232,1705065079784,-509.6609531,0.00023413,2]
[311342233,1705065079793,-500.0,0.00023413,2]
[311342234,1705065079803,-500.0,0.00023413,2]
[311342235,1705065079813,-500.0,0.00023413,2]
[311342236,1705065079826,-500.0,0.00023413,2]
[311342237,1705065079836,-500.0,0.00023413,2]
[311342238,1705065079846,-500.0,0.00023413,2]
[311342239,1705065079854,-500.0,0.00023413,2]
[311342240,1705065079864,-506.67,0.00023413,2]
[311342241,1705065079874,-555.88,0.00023413,2]
[311342242,1705065079883,-500.0,0.00023413,2]
[311342243,1705065079892,-500.0,0.00023413,2]
[311342244,1705065079902,-500.0,0.00023413,2]
[311342245,1705065079911,-500.0,0.00023413,2]
[311342246,1705065079920,-500.0,0.00023413,2]
[311342247,1705065079930,-498.74228184,0.00023413,2]
[311342248,1705065079939,-222.21,0.00023413,2]
[311342249,1705065079949,-500.0,0.00023413,2]
[311342250,1705065079958,-500.0,0.00023413,2]
[311342251,1705065079967,-500.0,0.00023413,2]
[311342252,1705065079977,-500.0,0.00023413,2]
[311342253,1705065079986,-636.36,0.00023413,2]
[311342254,1705065079996,-500.0,0.00023413,2]
[311342255,1705065080005,-500.0,0.00023413,2]
[311342256,1705065080015,-500.0,0.00023413,2]
[311342257,1705065080024,-500.0,0.00023413,2]
[311342258,1705065080033,-500.0,0.00023413,2]
[311342259,1705065080042,-500.0,0.00023413,2]
[311342260,1705065080052,-500.0,0.00023413,2]
[311342261,1705065080061,-500.0,0.00023413,2]
[311342262,1705065080071,-500.0,0.00023413,2]
[311342263,1705065080080,-500.0,0.00023413,2]
[311342264,1705065080089,-500.0,0.00023413,2]
[311342265,1705065080099,-500.0,0.00023413,2]
[311342266,1705065080108,-500.0,0.00023413,2]
[311342267,1705065080118,-500.0,0.00023413,2]
[311342268,1705065080128,-500.0,0.00023413,2]
[311342269,1705065080138,-500.0,0.00023413,2]
[311342270,1705065080147,-500.0,0.00023413,2]
[311342271,1705065080157,-500.0,0.00023413,2]
[311342272,1705065080166,-500.0,0.00023413,2]
[311342273,1705065080175,-710.1,0.00023413,2]
[311342274,1705065080185,-500.0,0.00023413,2]
[311342275,1705065080194,-500.0,0.00023413,2]
[311342276,1705065080204,-500.0,0.00023413,2]
[311342277,1705065080214,-500.0,0.00023413,2]
[311342278,1705065080223,-500.0,0.00023413,2]
[311342279,1705065080233,-500.0,0.00023413,2]
[311342280,1705065080242,-500.0,0.00023413,2]
[311342281,1705065080252,-500.0,0.00023413,2]
[311342282,1705065080261,-500.0,0.00023413,2]
[311342283,1705065080270,-500.0,0.00023413,2]
[311342284,1705065080280,-500.0,0.00023413,2]
[311342285,1705065080289,-500.0,0.00023413,2]
[311342286,1705065080300,-500.0,0.00023413,2]
[311342287,1705065080309,-500.0,0.00023413,2]
[311342288,1705065080319,-500.0,0.00023413,2]
[311342289,1705065080328,-500.0,0.00023413,2]
[311342290,1705065080338,-500.0,0.00023413,2]
[311342291,1705065080347,-1022.92,0.00023413,2]
[311342292,1705065080357,-500.0,0.00023413,2]
[311342293,1705065080367,-500.0,0.00023413,2]
[311342294,1705065080376,-1065.11,0.00023413,2]
[311342295,1705065080386,-500.0,0.00023413,2]
[311342296,1705065080396,-973.85,0.00023413,2]
[311342297,1705065080406,-596.64,0.00023413,2]
[311342298,1705065080415,-1316.49,0.00023413,2]
[311342299,1705065080424,-565.15,0.00023413,2]
[311342300,1705065080434,-4908.84,0.00023413,2]
[311342301,1705065080444,-567.77,0.00023413,2]
[311342302,1705065080455,-500.0,0.00023413,2]
[311342303,1705065080464,-1555.67,0.00023413,2]
[311342304,1705065080474,-1400.6,0.00023413,5]
[311342305,1705065080483,-1433.76,0.00023413,2]
[311342306,1705065080493,-1359.51,0.00023413,2]
[311342307,1705065080503,-647.67,0.00023413,2]
[311342308,1705065080512,-756.74,0.00023413,2]
[311342309,1705065080522,-1876.2,0.00023413,2]
[311342310,1705065080531,-1309.3,0.00023413,2]
[311342311,1705065080541,-937.63,0.00023413,2]
[311342312,1705065080550,-2066.36,0.00023413,2]
[311342313,1705065080560,-3090.41,0.00023413,2]
[311342314,1705065080569,-660.9,0.00023413,2]
[311342315,1705065080579,-500.0,0.00023413,2]
[311342316,1705065080588,-500.0,0.00023413,2]
[311342317,1705065080598,-500.0,0.00023413,2]
[311342318,1705065080608,-500.0,0.00023413,2]
[311342319,1705065080617,-1935.88,0.00023413,2]
[311342320,1705065080626,-505.19,0.00023413,2]
[311342321,1705065080635,-527.44,0.00023413,2]
[311342322,1705065080645,-500.0,0.00023413,2]
[311342323,1705065080655,-500.0,0.00023413,2]
[311342324,1705065080665,-1258.22,0.00023413,2]
[311342325,1705065080675,-500.0,0.00023413,2]
[311342326,1705065080684,-500.0,0.00023413,2]
[311342327,1705065080695,-500.0,0.00023413,2]
[311342328,1705065080707,-620.89,0.00023413,2]
[311342329,1705065080717,-500.0,0.00023413,2]
[311342330,1705065080727,-993.03,0.00023413,2]
[311342331,1705065080737,-724.59,0.00023413,2]
[311342332,1705065080747,-612.2303,0.00023414,2]
[311342333,1705065080757,-162.5,0.00023424,2]
[311342334,1705065080767,-500.0,0.00023622,2]
[311342335,1705065080777,-460.54,0.00023623,2]
[311342336,1705065080787,-1095.03,0.00023683,2]
[311342337,1705065080796,-2336.53,0.00023683,5]
[311342338,1705065080806,-660.44,0.00023683,2]
[311342339,1705065080816,-4983.08,0.00023683,2]
[311342340,1705065080825,-500.0,0.00023683,2]
[311342341,1705065080835,-1968.89,0.00023683,2]
[311342342,1705065080845,-6835.31,0.00023683,2]
[311342343,1705065080854,-14321.2,0.00023683,2]
[311342344,1705065080863,-549.3,0.00023683,2]
[311342345,1705065080872,-619.15,0.00023683,2]
[311342346,1705065080882,-1403.82,0.00023683,2]
[311342347,1705065080892,-722.98,0.00023683,2]
[311342348,1705065080901,-500.0,0.00023683,2]
[311342349,1705065080911,-607.61,0.00023683,2]
[311342350,1705065080920,-510.07,0.00023683,2]
[311342351,1705065080929,-749.86,0.00023683,2]
[311342352,1705065080938,-3048.94,0.00023683,2]
[311342353,1705065080951,-500.0,0.00023683,2]
[311342354,1705065080960,-500.0,0.00023683,2]
[311342355,1705065080970,-1294.29,0.00023683,2]
[311342356,1705065080979,-984.37,0.00023683,2]
[311342357,1705065080989,-675.45,0.00023683,2]
[311342358,1705065080998,-1709.12,0.00023683,2]
[311342359,1705065081008,-500.0,0.00023683,2]
[311342360,1705065081017,-500.0,0.00023683,2]
[311342361,1705065081026,-937.07,0.00023683,2]
[311342362,1705065081035,-2370.13,0.00023683,2]
[311342363,1705065081045,-500.0,0.00023683,2]
[311342364,1705065081056,-500.0,0.00023683,2]
[311342365,1705065081065,-793.03,0.00023683,2]
[311342366,1705065081075,-786.71,0.00023683,2]
[311342367,1705065081085,-1074.66,0.00023683,2]
[311342368,1705065081094,-2000.06,0.00023683,2]
[311342369,1705065081104,-3928.94,0.00023683,2]
[311342370,1705065081113,-1033.75,0.00023683,2]
[311342371,1705065081123,-874.55,0.00023683,2]
[311342372,1705065081136,-1304.48,0.00023683,2]
[311342373,1705065081146,-500.0,0.00023683,2]
[311342374,1705065081155,-500.0,0.00023683,2]
[311342375,1705065081165,-6963.0,0.00023683,2]
[311342376,1705065081175,-1048.12,0.00023683,2]
[311342377,1705065081186,-500.0,0.00023683,2]
[311342378,1705065081196,-500.0,0.00023683,2]
[311342379,1705065081209,-500.0,0.00023683,2]
[311342380,1705065081219,-1205.23,0.00023683,2]
[311342381,1705065081228,-500.0,0.00023683,2]
[311342382,1705065081238,-736.05,0.00023683,2]
[311342383,1705065081247,-9796.43,0.00023683,2]
[311342384,1705065081257,-500.0,0.00023683,2]
[311342385,1705065081267,-2056.42,0.00023683,2]
[311342386,1705065081277,-500.0,0.00023683,2]
[311342387,1705065081286,-600.05,0.00023683,2]
[311342388,1705065081296,-1076.15,0.00023683,2]
[311342389,1705065081306,-500.0,0.00023683,2]
[311342390,1705065081316,-1891.13,0.00023683,2]
[311342391,1705065081325,-500.0,0.00023683,2]
[311342392,1705065081335,-2556.24,0.00023683,2]
[311342393,1705065081344,-750.14,0.00023683,2]
[311342394,1705065081354,-500.0,0.00023683,2]
[311342395,1705065081364,-2721.6,0.00023683,2]
[311342396,1705065081374,-500.0,0.00023683,2]
[311342397,1705065081383,-884.19,0.00023683,2]
[311342398,1705065081393,-2018.21,0.00023683,2]
[311342399,1705065081402,-2134.94,0.00023683,2]
[311342400,1705065081412,-500.0,0.00023683,2]
[311342401,1705065081422,-1493.07,0.00023683,2]
[311342402,1705065081431,-1084.3,0.00023683,2]
[311342403,1705065081440,-612.02,0.00023683,2]
[311342404,1705065081451,-500.0,0.00023683,2]
[311342405,1705065081461,-5673.19,0.00023683,2]
[311342406,1705065081471,-500.0,0.00023683,2]
[311342407,1705065081481,-1028.9,0.00023683,2]
[311342408,1705065081490,-2233.34,0.00023683,2]
[311342409,1705065081500,-710.28,0.00023683,2]
[311342410,1705065081511,-500.0,0.00023683,2]
[311342411,1705065081520,-500.0,0.00023686,2]
[311342412,1705065081530,-500.0,0.00023686,2]
[311342413,1705065081539,-279.59670612,0.00023686,2]
[311342414,1705065081549,-500.0,0.00023686,2]
[311342415,1705065081558,-500.0,0.00023686,2]
[311342416,1705065081567,-500.0,0.00023686,2]
[311342417,1705065081577,-1431.33,0.00023686,2]
[311342418,1705065081587,-500.0,0.00023686,2]
[311342419,1705065081597,-500.0,0.00023686,2]
[311342420,1705065081607,-500.0,0.00023686,2]
[311342421,1705065081617,-500.0,0.00023686,2]
[311342422,1705065081639,-500.0,0.00023686,2]
[311342423,1705065081649,-500.0,0.00023686,2]
[311342424,1705065081660,-500.0,0.00023686,2]
[311342425,1705065081670,-170.72,0.00023686,2]
[311342426,1705065081680,-500.0,0.00023686,2]
[311342427,1705065081691,-500.0,0.00023686,2]
[311342428,1705065081705,-500.0,0.00023686,2]
[311342429,1705065081715,-500.0,0.00023686,2]
[311342430,1705065081725,-500.0,0.00023686,2]
[311342431,1705065081736,-500.0,0.00023686,2]
[311342432,1705065081746,-500.0,0.00023686,2]
[311342433,1705065081967,-500.0,0.00023686,2]
[311342434,1705065081989,-500.0,0.00023686,2]
[311342435,1705065081999,-526.28,0.00023686,2]
[311342436,1705065082009,-500.0,0.00023686,2]
[311342437,1705065082018,-500.0,0.00023686,2]
[311342438,1705065082028,-500.0,0.00023686,2]
[311342439,1705065082037,-500.0,0.00023686,2]
[311342440,1705065082047,-500.0,0.00023686,2]
[311342441,1705065082060,-163.24,0.00023686,2]
[311342442,1705065082070,-500.0,0.00023686,2]
[311342443,1705065082079,-500.0,0.00023686,2]
[311342444,1705065082089,-500.0,0.00023686,2]
[311342445,1705065082099,-317.77935205,0.00023686,2]
[311342446,1705065082109,-500.0,0.00023686,2]
[311342447,1705065082119,-500.0,0.00023686,2]